[Event "*** Titled Tuesday Blitz"]
[Site "Chess.com"]
[Date "2021.02.09"]
[Round "9"]
[White "Sanyura"]
[Black "ErikBlomqvist"]
[Result "1-0"]
[WhiteElo "2651"]
[BlackElo "2518"]
[TimeControl "180+1"]
[EndTime "11:44:08 PST"]
[Termination "Sanyura won by resignation"]

1. e4 {[%clk 0:03:00.2]} 1... c6 {[%clk 0:02:59.7]} 2. Nc3 {[%clk 0:02:59.7]}
2... d5 {[%clk 0:03:00.3]} 3. Nf3 {[%clk 0:03:00.4]} 3... Bg4 {[%clk 0:03:00]}
4. h3 {[%clk 0:03:00.6]} 4... Bh5 {[%clk 0:03:00.5]} 5. d3 {[%clk 0:02:56]} 5...
e6 {[%clk 0:03:00]} 6. g3 {[%clk 0:02:54.5]} 6... Nd7 {[%clk 0:02:50.1]} 7. Bg2
{[%clk 0:02:54.4]} 7... Bd6 {[%clk 0:02:48.8]} 8. O-O {[%clk 0:02:52]} 8... Ne7
{[%clk 0:02:48.5]} 9. Re1 {[%clk 0:02:46.2]} 9... O-O {[%clk 0:02:34.3]} 10. d4
{[%clk 0:02:37.8]} 10... a6 {[%clk 0:02:14.2]} 11. a4 {[%clk 0:02:35.5]} 11...
a5 {[%clk 0:02:03]} 12. e5 {[%clk 0:02:08]} 12... Bb4 {[%clk 0:01:56.7]} 13. g4
{[%clk 0:02:04.9]} 13... Bg6 {[%clk 0:01:56.4]} 14. h4 {[%clk 0:02:05.3]} 14...
Be4 {[%clk 0:01:26.9]} 15. Nxe4 {[%clk 0:01:41.5]} 15... dxe4 {[%clk 0:01:26.8]}
16. Rxe4 {[%clk 0:01:37.5]} 16... f5 {[%clk 0:01:22.8]} 17. exf6 {[%clk
0:01:36.8]} 17... Nxf6 {[%clk 0:01:21.9]} 18. Rxe6 {[%clk 0:01:35]} 18... Nxg4
{[%clk 0:01:18.5]} 19. c3 {[%clk 0:01:34]} 19... Bd6 {[%clk 0:01:18.1]} 20. Bg5
{[%clk 0:01:34.1]} 20... Qd7 {[%clk 0:01:15.6]} 21. Qb3 {[%clk 0:01:34.1]} 21...
Nd5 {[%clk 0:01:12.7]} 22. Rae1 {[%clk 0:01:29.8]} 22... Kh8 {[%clk 0:01:06.3]}
23. c4 {[%clk 0:01:04.3]} 23... Nf4 {[%clk 0:00:59.2]} 24. Bxf4 {[%clk 0:00:53]}
24... Rxf4 {[%clk 0:01:00.1]} 25. c5 {[%clk 0:00:49.3]} 25... Bf8 {[%clk
0:00:31]} 26. R6e4 {[%clk 0:00:49.3]} 26... Rxe4 {[%clk 0:00:27.7]} 27. Rxe4
{[%clk 0:00:50.2]} 27... Re8 {[%clk 0:00:18.4]} 28. Ng5 {[%clk 0:00:42.2]} 28...
g6 {[%clk 0:00:09.2]} 29. Qf7 {[%clk 0:00:38.4]} 29... Qxf7 {[%clk 0:00:02.6]}
30. Nxf7+ {[%clk 0:00:39.3]} 30... Kg7 {[%clk 0:00:03.2]} 31. Rxe8 {[%clk
0:00:39.4]} 31... Kxf7 {[%clk 0:00:04.1]} 1-0

[Event "*** Titled Tuesday Blitz"]
[Site "Chess.com"]
[Date "2021.02.09"]
[Round "9"]
[White "BigAl"]
[Black "Irina_Baraeva"]
[Result "1-0"]
[WhiteElo "2472"]
[BlackElo "2306"]
[TimeControl "180+1"]
[EndTime "11:44:12 PST"]
[Termination "BigAl won by resignation"]

1. Nf3 {[%clk 0:03:00.9]} 1... d5 {[%clk 0:02:59.7]} 2. g3 {[%clk 0:03:00.8]}
2... Bg4 {[%clk 0:02:51.7]} 3. Bg2 {[%clk 0:03:01.7]} 3... c6 {[%clk 0:02:49.5]}
4. O-O {[%clk 0:03:01.7]} 4... Nd7 {[%clk 0:02:48.6]} 5. d3 {[%clk 0:03:02.1]}
5... e5 {[%clk 0:02:48.4]} 6. c4 {[%clk 0:03:00.1]} 6... Ngf6 {[%clk 0:02:45]}
7. cxd5 {[%clk 0:02:58]} 7... cxd5 {[%clk 0:02:43.7]} 8. Nc3 {[%clk 0:02:58.1]}
8... Be7 {[%clk 0:02:36.7]} 9. h3 {[%clk 0:02:54.2]} 9... Bh5 {[%clk 0:02:28.2]}
10. g4 {[%clk 0:02:53.8]} 10... Bg6 {[%clk 0:02:28.4]} 11. g5 {[%clk 0:02:52.1]}
11... Nh5 {[%clk 0:02:14.5]} 12. Nxd5 {[%clk 0:02:51.6]} 12... h6 {[%clk
0:02:08.8]} 13. gxh6 {[%clk 0:02:41.6]} 13... gxh6 {[%clk 0:02:08.7]} 14. Qa4
{[%clk 0:02:35.6]} 14... Nf6 {[%clk 0:01:58.2]} 15. Nxe5 {[%clk 0:02:26.4]}
15... b5 {[%clk 0:01:30.2]} 16. Qxb5 {[%clk 0:02:17.1]} 16... Rb8 {[%clk
0:01:30.4]} 17. Nxf6+ {[%clk 0:02:16.6]} 17... Bxf6 {[%clk 0:01:27.5]} 18. Qxd7+
{[%clk 0:02:00]} 18... Qxd7 {[%clk 0:01:27.3]} 19. Nxd7 {[%clk 0:02:00.3]} 19...
Kxd7 {[%clk 0:01:27.8]} 20. Bf4 {[%clk 0:01:34.1]} 20... Rxb2 {[%clk 0:01:25.1]}
21. e3 {[%clk 0:01:26.8]} 21... Rc8 {[%clk 0:01:15.3]} 22. Bxh6 {[%clk
0:01:13.8]} 22... Rcc2 {[%clk 0:01:14.4]} 23. a4 {[%clk 0:01:14]} 23... Ke7
{[%clk 0:00:44.8]} 24. Rab1 {[%clk 0:00:40.2]} 24... Bxd3 {[%clk 0:00:34.6]} 25.
Rxb2 {[%clk 0:00:40.2]} 25... Rxb2 {[%clk 0:00:28]} 26. Rc1 {[%clk 0:00:39]}
26... Bh4 {[%clk 0:00:25.2]} 27. Rc7+ {[%clk 0:00:29]} 27... Kf6 {[%clk
0:00:24.6]} 28. Bf4 {[%clk 0:00:25.3]} 28... Bxf2+ {[%clk 0:00:21.9]} 29. Kh2
{[%clk 0:00:25.6]} 29... Bxe3 {[%clk 0:00:18.2]} 30. Bxe3 {[%clk 0:00:23.5]}
30... Be4 {[%clk 0:00:18.5]} 31. Bd4+ {[%clk 0:00:23.8]} 31... Ke6 {[%clk
0:00:17.6]} 32. Bxb2 {[%clk 0:00:24.2]} 32... Kd6 {[%clk 0:00:17.8]} 33. Rxa7
{[%clk 0:00:24.1]} 1-0

[Event "*** Titled Tuesday Blitz"]
[Site "Chess.com"]
[Date "2021.02.09"]
[Round "9"]
[White "Piotrek1979"]
[Black "Shuvalov"]
[Result "1-0"]
[WhiteElo "2396"]
[BlackElo "2487"]
[TimeControl "180+1"]
[EndTime "11:44:15 PST"]
[Termination "Piotrek1979 won by checkmate"]

1. e4 {[%clk 0:03:00.9]} 1... e6 {[%clk 0:02:58.5]} 2. d4 {[%clk 0:02:58.4]}
2... d5 {[%clk 0:02:58.7]} 3. exd5 {[%clk 0:02:54.6]} 3... exd5 {[%clk
0:02:59.6]} 4. Nf3 {[%clk 0:02:54.3]} 4... Nf6 {[%clk 0:02:56.1]} 5. Bd3 {[%clk
0:02:52.7]} 5... c5 {[%clk 0:02:55.9]} 6. O-O {[%clk 0:02:47.5]} 6... c4 {[%clk
0:02:55]} 7. Re1+ {[%clk 0:02:46.7]} 7... Be7 {[%clk 0:02:54.9]} 8. Be2 {[%clk
0:02:45]} 8... O-O {[%clk 0:02:54]} 9. b3 {[%clk 0:02:44.3]} 9... cxb3 {[%clk
0:02:54.1]} 10. axb3 {[%clk 0:02:43.2]} 10... Bf5 {[%clk 0:02:51.7]} 11. c4
{[%clk 0:02:36]} 11... Nc6 {[%clk 0:02:50.7]} 12. Nc3 {[%clk 0:02:29.6]} 12...
Bb4 {[%clk 0:02:38.8]} 13. Bb2 {[%clk 0:02:18.7]} 13... Ne4 {[%clk 0:02:31.5]}
14. Nxd5 {[%clk 0:01:59.2]} 14... Bxe1 {[%clk 0:02:29.1]} 15. Qxe1 {[%clk
0:01:49.6]} 15... Re8 {[%clk 0:02:27.6]} 16. Ne3 {[%clk 0:01:45.3]} 16... Bg6
{[%clk 0:02:26.4]} 17. d5 {[%clk 0:01:44.7]} 17... Ne7 {[%clk 0:02:18.4]} 18.
Ne5 {[%clk 0:01:41.1]} 18... Nf5 {[%clk 0:02:11.4]} 19. Nxg6 {[%clk 0:01:00.6]}
19... hxg6 {[%clk 0:02:12.3]} 20. Nxf5 {[%clk 0:00:59.9]} 20... gxf5 {[%clk
0:02:12.9]} 21. Bf3 {[%clk 0:00:54.6]} 21... Qb6 {[%clk 0:02:05.6]} 22. b4
{[%clk 0:00:45.8]} 22... a5 {[%clk 0:01:58.5]} 23. Bxe4 {[%clk 0:00:39.8]} 23...
Rxe4 {[%clk 0:01:54.8]} 24. Qc3 {[%clk 0:00:39.3]} 24... f6 {[%clk 0:01:44.2]}
25. bxa5 {[%clk 0:00:38.6]} 25... Qc5 {[%clk 0:01:42.1]} 26. Ra4 {[%clk
0:00:32.3]} 26... Rae8 {[%clk 0:01:32.9]} 27. g3 {[%clk 0:00:29.1]} 27... Re2
{[%clk 0:01:30.6]} 28. Qf3 {[%clk 0:00:27.1]} 28... Rxb2 {[%clk 0:01:25.9]} 29.
a6 {[%clk 0:00:25.7]} 29... bxa6 {[%clk 0:01:22.4]} 30. Rxa6 {[%clk 0:00:24.8]}
30... Re1+ {[%clk 0:01:16.2]} 31. Kg2 {[%clk 0:00:23.5]} 31... Ree2 {[%clk
0:01:16.5]} 32. Ra8+ {[%clk 0:00:21.1]} 32... Kf7 {[%clk 0:01:12.4]} 33. Qh5+
{[%clk 0:00:20.7]} 33... Ke7 {[%clk 0:00:57.8]} 34. Qe8+ {[%clk 0:00:20.1]}
34... Kd6 {[%clk 0:00:57.5]} 35. Rd8+ {[%clk 0:00:19.4]} 35... Kc7 {[%clk
0:00:57.4]} 36. Rd7+ {[%clk 0:00:16.1]} 36... Kb6 {[%clk 0:00:56]} 37. Qb8+
{[%clk 0:00:13.3]} 37... Ka6 {[%clk 0:00:54.7]} 38. Qa8+ {[%clk 0:00:12]} 38...
Kb6 {[%clk 0:00:41.2]} 39. Qa7# {[%clk 0:00:12.9]} 1-0

[Event "*** Titled Tuesday Blitz"]
[Site "Chess.com"]
[Date "2021.02.09"]
[Round "9"]
[White "Darius321"]
[Black "onnoelgersma"]
[Result "1-0"]
[WhiteElo "2288"]
[BlackElo "2428"]
[TimeControl "180+1"]
[EndTime "11:44:18 PST"]
[Termination "Darius321 won by resignation"]

1. e4 {[%clk 0:02:53.4]} 1... c5 {[%clk 0:03:00.1]} 2. Nf3 {[%clk 0:02:52.7]}
2... e6 {[%clk 0:03:00.6]} 3. c3 {[%clk 0:02:52.1]} 3... d5 {[%clk 0:02:58.6]}
4. e5 {[%clk 0:02:52.3]} 4... Nc6 {[%clk 0:02:54.4]} 5. d4 {[%clk 0:02:51.7]}
5... Bd7 {[%clk 0:02:54.9]} 6. Na3 {[%clk 0:02:49.2]} 6... Rc8 {[%clk 0:02:54]}
7. Nc2 {[%clk 0:02:48.2]} 7... Qa5 {[%clk 0:02:41.4]} 8. Be2 {[%clk 0:02:41.7]}
8... cxd4 {[%clk 0:02:39.3]} 9. Ncxd4 {[%clk 0:02:40.3]} 9... Nge7 {[%clk
0:02:34.6]} 10. O-O {[%clk 0:02:38.8]} 10... Ng6 {[%clk 0:02:31]} 11. Nxc6
{[%clk 0:02:25.1]} 11... bxc6 {[%clk 0:02:29.1]} 12. Bd3 {[%clk 0:02:19.1]}
12... Qc7 {[%clk 0:02:25.8]} 13. Re1 {[%clk 0:02:18.8]} 13... c5 {[%clk
0:02:26]} 14. h4 {[%clk 0:02:17.8]} 14... Ne7 {[%clk 0:02:22.9]} 15. h5 {[%clk
0:02:15]} 15... h6 {[%clk 0:02:22.5]} 16. Bf4 {[%clk 0:02:14.2]} 16... Nc6
{[%clk 0:02:22.5]} 17. c4 {[%clk 0:02:07.1]} 17... d4 {[%clk 0:02:20.6]} 18. Nd2
{[%clk 0:02:00.5]} 18... Be7 {[%clk 0:02:18.5]} 19. Qf3 {[%clk 0:01:56.7]} 19...
Rb8 {[%clk 0:02:15.7]} 20. b3 {[%clk 0:01:47.6]} 20... a5 {[%clk 0:02:12.9]} 21.
Qg3 {[%clk 0:01:34.6]} 21... Kf8 {[%clk 0:01:43.9]} 22. Ne4 {[%clk 0:01:33.6]}
22... Nb4 {[%clk 0:01:30.3]} 23. Rad1 {[%clk 0:01:28.5]} 23... a4 {[%clk
0:01:28.3]} 24. Nf6 {[%clk 0:01:26]} 24... axb3 {[%clk 0:01:13.5]} 25. axb3
{[%clk 0:01:25.3]} 25... Na2 {[%clk 0:01:04.6]} 26. Nh7+ {[%clk 0:01:20]} 26...
Rxh7 {[%clk 0:00:44.1]} 27. Bxh7 {[%clk 0:01:19]} 27... Nc3 {[%clk 0:00:31.1]}
28. Bxh6 {[%clk 0:01:17.9]} 28... Ke8 {[%clk 0:00:27.7]} 29. Qxg7 {[%clk
0:01:16.5]} 29... Kd8 {[%clk 0:00:27.6]} 30. Qxf7 {[%clk 0:01:10.4]} 30... Nxd1
{[%clk 0:00:24]} 31. Bg6 {[%clk 0:01:01.7]} 31... Kc8 {[%clk 0:00:11.8]} 32.
Rxd1 {[%clk 0:00:57.9]} 32... Bd8 {[%clk 0:00:10.6]} 33. Bf4 {[%clk 0:00:54.1]}
33... Rxb3 {[%clk 0:00:10.3]} 34. h6 {[%clk 0:00:54.4]} 34... d3 {[%clk
0:00:06.8]} 35. h7 {[%clk 0:00:53.6]} 35... d2 {[%clk 0:00:07]} 36. h8=Q {[%clk
0:00:51.9]} 36... Rc3 {[%clk 0:00:06.9]} 37. Rxd2 {[%clk 0:00:49.6]} 37... Rc1+
{[%clk 0:00:06.7]} 38. Kh2 {[%clk 0:00:49.2]} 1-0

[Event "*** Titled Tuesday Blitz"]
[Site "Chess.com"]
[Date "2021.02.09"]
[Round "9"]
[White "anantone"]
[Black "shaheus"]
[Result "1-0"]
[WhiteElo "2561"]
[BlackElo "2398"]
[TimeControl "180+1"]
[EndTime "11:44:20 PST"]
[Termination "anantone won on time"]

1. e4 {[%clk 0:03:00.9]} 1... c5 {[%clk 0:02:59.7]} 2. Nf3 {[%clk 0:03:00.6]}
2... Nc6 {[%clk 0:03:00.1]} 3. d4 {[%clk 0:03:00.2]} 3... cxd4 {[%clk
0:03:00.2]} 4. Nxd4 {[%clk 0:03:01.1]} 4... Nf6 {[%clk 0:03:00.5]} 5. Nc3 {[%clk
0:03:01.4]} 5... d6 {[%clk 0:03:00.5]} 6. Bg5 {[%clk 0:02:40.9]} 6... e6 {[%clk
0:02:59.1]} 7. Qd2 {[%clk 0:02:40.2]} 7... a6 {[%clk 0:02:59]} 8. O-O-O {[%clk
0:02:36.1]} 8... h6 {[%clk 0:02:58.9]} 9. Nxc6 {[%clk 0:02:30.8]} 9... bxc6
{[%clk 0:02:58.2]} 10. Bf4 {[%clk 0:02:30.7]} 10... d5 {[%clk 0:02:56.9]} 11.
Bd3 {[%clk 0:02:21.6]} 11... Be7 {[%clk 0:02:55.1]} 12. g4 {[%clk 0:02:18.3]}
12... Qa5 {[%clk 0:02:11.2]} 13. Kb1 {[%clk 0:01:57.4]} 13... d4 {[%clk
0:01:58.9]} 14. Nd5 {[%clk 0:01:52.9]} 14... Qxd2 {[%clk 0:01:49.1]} 15. Nxf6+
{[%clk 0:01:51.2]} 15... gxf6 {[%clk 0:01:25]} 16. Bxd2 {[%clk 0:01:52.1]} 16...
c5 {[%clk 0:01:19.9]} 17. f4 {[%clk 0:01:31.2]} 17... Bb7 {[%clk 0:01:19.8]} 18.
h4 {[%clk 0:01:22.6]} 18... c4 {[%clk 0:01:12.2]} 19. Bxc4 {[%clk 0:01:18.3]}
19... Bxe4 {[%clk 0:01:12]} 20. Rhf1 {[%clk 0:01:18.7]} 20... f5 {[%clk
0:00:59.9]} 21. Bd3 {[%clk 0:00:49.9]} 21... Bxd3 {[%clk 0:00:56.7]} 22. cxd3
{[%clk 0:00:49.9]} 22... fxg4 {[%clk 0:00:56.1]} 23. f5 {[%clk 0:00:50.3]} 23...
Bxh4 {[%clk 0:00:46.5]} 24. fxe6 {[%clk 0:00:46.9]} 24... fxe6 {[%clk
0:00:46.5]} 25. Rf4 {[%clk 0:00:47.4]} 25... O-O-O {[%clk 0:00:24.7]} 26. Rxg4
{[%clk 0:00:44.8]} 26... Bf6 {[%clk 0:00:17.6]} 27. Rg6 {[%clk 0:00:41.5]} 27...
Rdf8 {[%clk 0:00:14.9]} 28. Bxh6 {[%clk 0:00:41.1]} 28... Rf7 {[%clk 0:00:14.1]}
29. Rf1 {[%clk 0:00:37]} 29... Kd7 {[%clk 0:00:01.1]} 30. Rfxf6 {[%clk
0:00:29.5]} 1-0

[Event "*** Titled Tuesday Blitz"]
[Site "Chess.com"]
[Date "2021.02.09"]
[Round "9"]
[White "MarceloPlaya"]
[Black "TheSodabread"]
[Result "1-0"]
[WhiteElo "2273"]
[BlackElo "2106"]
[TimeControl "180+1"]
[EndTime "11:44:20 PST"]
[Termination "MarceloPlaya won on time"]

1. e4 {[%clk 0:03:00.9]} 1... e5 {[%clk 0:02:59]} 2. Nf3 {[%clk 0:02:58.7]} 2...
Nf6 {[%clk 0:02:59.3]} 3. Nxe5 {[%clk 0:02:56.9]} 3... Nc6 {[%clk 0:02:59.6]} 4.
Nxf7 {[%clk 0:02:55.3]} 4... Kxf7 {[%clk 0:02:57.6]} 5. Nc3 {[%clk 0:02:55.8]}
5... Bb4 {[%clk 0:02:49]} 6. Bc4+ {[%clk 0:02:54]} 6... Kf8 {[%clk 0:02:44.7]}
7. d3 {[%clk 0:02:45.9]} 7... d5 {[%clk 0:02:35.2]} 8. exd5 {[%clk 0:02:45.3]}
8... Ne5 {[%clk 0:02:35.4]} 9. O-O {[%clk 0:02:41]} 9... Nxc4 {[%clk 0:02:32.4]}
10. dxc4 {[%clk 0:02:40.2]} 10... Bxc3 {[%clk 0:02:32.8]} 11. bxc3 {[%clk
0:02:39.5]} 11... Bg4 {[%clk 0:02:27.7]} 12. Ba3+ {[%clk 0:02:32.4]} 12... Kf7
{[%clk 0:02:25.9]} 13. f3 {[%clk 0:02:27.5]} 13... Bh5 {[%clk 0:02:25.4]} 14.
Rb1 {[%clk 0:02:24.7]} 14... b6 {[%clk 0:02:12.3]} 15. Qd4 {[%clk 0:02:16.3]}
15... Re8 {[%clk 0:02:04.9]} 16. Rfe1 {[%clk 0:02:14.8]} 16... c5 {[%clk
0:01:58.9]} 17. dxc6 {[%clk 0:02:09.7]} 17... Qc7 {[%clk 0:01:43.6]} 18. c5
{[%clk 0:01:48.6]} 18... Rad8 {[%clk 0:01:39.5]} 19. Qc4+ {[%clk 0:01:47.1]}
19... Nd5 {[%clk 0:01:26.2]} 20. Rxe8 {[%clk 0:01:42.8]} 20... Kxe8 {[%clk
0:01:27.1]} 21. cxb6 {[%clk 0:01:40.7]} 21... axb6 {[%clk 0:01:27.1]} 22. Re1+
{[%clk 0:01:34.1]} 22... Kf7 {[%clk 0:01:26.3]} 23. Rd1 {[%clk 0:01:25.1]} 23...
b5 {[%clk 0:01:07.6]} 24. Qxb5 {[%clk 0:00:54]} 24... Qe5 {[%clk 0:00:50.4]} 25.
Qc5 {[%clk 0:00:44.7]} 25... Ra8 {[%clk 0:00:08.2]} 26. c4 {[%clk 0:00:33.8]}
26... Qe3+ {[%clk 0:00:05.7]} 27. Qxe3 {[%clk 0:00:31.9]} 27... Nxe3 {[%clk
0:00:06.6]} 28. Rd7+ {[%clk 0:00:31.1]} 28... Kf6 {[%clk 0:00:02.6]} 29. c7
{[%clk 0:00:28.6]} 1-0

[Event "*** Titled Tuesday Blitz"]
[Site "Chess.com"]
[Date "2021.02.09"]
[Round "9"]
[White "Eternauta2400"]
[Black "politeplayer"]
[Result "0-1"]
[WhiteElo "2370"]
[BlackElo "2217"]
[TimeControl "180+1"]
[EndTime "11:44:23 PST"]
[Termination "politeplayer won on time"]

1. e4 {[%clk 0:03:00.9]} 1... e5 {[%clk 0:02:58.8]} 2. Nf3 {[%clk 0:03:01.2]}
2... Nf6 {[%clk 0:02:54.8]} 3. Nxe5 {[%clk 0:02:59.7]} 3... d6 {[%clk
0:02:54.6]} 4. Nf3 {[%clk 0:02:59.6]} 4... Be7 {[%clk 0:02:51.7]} 5. Nc3 {[%clk
0:02:57.2]} 5... O-O {[%clk 0:02:50.2]} 6. Be2 {[%clk 0:02:55.9]} 6... Nc6
{[%clk 0:02:49.6]} 7. O-O {[%clk 0:02:55.4]} 7... Bg4 {[%clk 0:02:46.1]} 8. h3
{[%clk 0:02:52.7]} 8... Bxf3 {[%clk 0:02:40.7]} 9. Bxf3 {[%clk 0:02:53.6]} 9...
Nd4 {[%clk 0:02:39.7]} 10. d3 {[%clk 0:02:51.9]} 10... c6 {[%clk 0:02:35.9]} 11.
Be3 {[%clk 0:02:51.1]} 11... Nxf3+ {[%clk 0:02:33.1]} 12. Qxf3 {[%clk
0:02:50.5]} 12... Qa5 {[%clk 0:02:32]} 13. a3 {[%clk 0:02:28.7]} 13... Nd7
{[%clk 0:02:29.1]} 14. Rfe1 {[%clk 0:02:16.5]} 14... Bf6 {[%clk 0:02:26.8]} 15.
d4 {[%clk 0:02:07.7]} 15... Rfe8 {[%clk 0:02:18.9]} 16. b4 {[%clk 0:02:06.8]}
16... Qc7 {[%clk 0:02:13.8]} 17. Rad1 {[%clk 0:02:06.1]} 17... a5 {[%clk
0:02:12.9]} 18. g4 {[%clk 0:01:54.6]} 18... axb4 {[%clk 0:02:11.4]} 19. axb4
{[%clk 0:01:53.6]} 19... Ra3 {[%clk 0:02:11.1]} 20. Bf4 {[%clk 0:01:40.1]} 20...
Nb6 {[%clk 0:01:45]} 21. g5 {[%clk 0:01:36.1]} 21... Be7 {[%clk 0:01:33.5]} 22.
Ra1 {[%clk 0:01:35.1]} 22... Rea8 {[%clk 0:01:31.1]} 23. Rxa3 {[%clk 0:01:08.7]}
23... Rxa3 {[%clk 0:01:30.1]} 24. Re3 {[%clk 0:00:58.5]} 24... Nc4 {[%clk
0:01:25.7]} 25. Rd3 {[%clk 0:00:54.6]} 25... Nb2 {[%clk 0:01:15.6]} 26. Re3
{[%clk 0:00:52.8]} 26... Nc4 {[%clk 0:01:15.6]} 27. Rd3 {[%clk 0:00:35.3]} 27...
Nb2 {[%clk 0:01:15.4]} 28. Re3 {[%clk 0:00:18.9]} 28... Qb6 {[%clk 0:01:09.5]}
29. e5 {[%clk 0:00:10.4]} 29... d5 {[%clk 0:01:00]} 30. Bh2 {[%clk 0:00:05]}
30... Qxd4 {[%clk 0:00:49]} 31. Ne2 {[%clk 0:00:02.4]} 31... Rxe3 {[%clk
0:00:41.7]} 32. Qxe3 {[%clk 0:00:02]} 32... Qxe3 {[%clk 0:00:41.2]} 33. fxe3
{[%clk 0:00:02.9]} 33... Bxb4 {[%clk 0:00:41.5]} 34. Bf4 {[%clk 0:00:03.3]}
34... Nd1 {[%clk 0:00:37.8]} 0-1

[Event "*** Titled Tuesday Blitz"]
[Site "Chess.com"]
[Date "2021.02.09"]
[Round "9"]
[White "hypert"]
[Black "Nils_03"]
[Result "1-0"]
[WhiteElo "2508"]
[BlackElo "2340"]
[TimeControl "180+1"]
[EndTime "11:44:24 PST"]
[Termination "hypert won by checkmate"]

1. e4 {[%clk 0:03:00.9]} 1... e5 {[%clk 0:02:58]} 2. Nc3 {[%clk 0:03:01.8]} 2...
Nf6 {[%clk 0:02:56.9]} 3. Nf3 {[%clk 0:03:02.3]} 3... Nc6 {[%clk 0:02:56.4]} 4.
d4 {[%clk 0:03:02.8]} 4... exd4 {[%clk 0:02:56.8]} 5. Nxd4 {[%clk 0:03:03.7]}
5... Bb4 {[%clk 0:02:56.7]} 6. Nxc6 {[%clk 0:03:04.3]} 6... bxc6 {[%clk
0:02:56.6]} 7. Bd3 {[%clk 0:03:04.8]} 7... O-O {[%clk 0:02:56.4]} 8. O-O {[%clk
0:03:04.4]} 8... d5 {[%clk 0:02:56.7]} 9. Bd2 {[%clk 0:03:04.9]} 9... Bxc3
{[%clk 0:02:53.4]} 10. Bxc3 {[%clk 0:03:04.8]} 10... Nxe4 {[%clk 0:02:51.4]} 11.
Bxe4 {[%clk 0:03:05]} 11... dxe4 {[%clk 0:02:51.5]} 12. Re1 {[%clk 0:03:05.7]}
12... Qxd1 {[%clk 0:02:48.8]} 13. Raxd1 {[%clk 0:03:06.6]} 13... Bf5 {[%clk
0:02:47.2]} 14. Rd4 {[%clk 0:03:06.4]} 14... Rfd8 {[%clk 0:02:43.3]} 15. Rc4
{[%clk 0:03:05.8]} 15... Rd6 {[%clk 0:02:31]} 16. h3 {[%clk 0:03:05.7]} 16...
Re6 {[%clk 0:02:20.9]} 17. Rc5 {[%clk 0:02:55.4]} 17... Bg6 {[%clk 0:02:18.8]}
18. b3 {[%clk 0:02:53.9]} 18... Rd8 {[%clk 0:02:06.8]} 19. Ra5 {[%clk
0:02:48.4]} 19... e3 {[%clk 0:02:06.4]} 20. fxe3 {[%clk 0:02:33.4]} 20... Bxc2
{[%clk 0:02:00.4]} 21. Rxa7 {[%clk 0:02:33]} 21... h5 {[%clk 0:01:44.8]} 22.
Rxc7 {[%clk 0:02:30.2]} 22... Ra8 {[%clk 0:01:43.5]} 23. a4 {[%clk 0:02:22.8]}
23... Bxb3 {[%clk 0:01:42.3]} 24. a5 {[%clk 0:02:22.9]} 24... Bd5 {[%clk
0:01:36.5]} 25. Kf2 {[%clk 0:02:15.7]} 25... Re4 {[%clk 0:01:32]} 26. Ra1 {[%clk
0:02:13.1]} 26... Rc4 {[%clk 0:01:28.9]} 27. Ra3 {[%clk 0:02:09.3]} 27... Rxc3
{[%clk 0:01:27.1]} 28. Rxc3 {[%clk 0:02:07.9]} 28... Rxa5 {[%clk 0:01:27.5]} 29.
Rc2 {[%clk 0:02:06.5]} 29... f5 {[%clk 0:01:19.9]} 30. Rb2 {[%clk 0:02:05.5]}
30... h4 {[%clk 0:01:14.9]} 31. g3 {[%clk 0:01:54.9]} 31... hxg3+ {[%clk
0:01:12.2]} 32. Kxg3 {[%clk 0:01:55.8]} 32... Ra1 {[%clk 0:01:05.3]} 33. Rb8+
{[%clk 0:01:44.3]} 33... Kh7 {[%clk 0:01:04.4]} 34. Rbb7 {[%clk 0:01:44]} 34...
Rg1+ {[%clk 0:01:03.3]} 35. Kf4 {[%clk 0:01:42.5]} 35... Be4 {[%clk 0:01:00.6]}
36. Re7 {[%clk 0:01:39.5]} 36... Kh6 {[%clk 0:00:55.1]} 37. Rbd7 {[%clk
0:01:33.9]} 37... Rf1+ {[%clk 0:00:50.5]} 38. Ke5 {[%clk 0:01:33.2]} 38... Rg1
{[%clk 0:00:48]} 39. Rd6+ {[%clk 0:01:31.6]} 39... Kh7 {[%clk 0:00:46]} 40. h4
{[%clk 0:01:30.9]} 40... Rh1 {[%clk 0:00:42.1]} 41. Rdd7 {[%clk 0:01:30.9]}
41... Rg1 {[%clk 0:00:42.3]} 42. h5 {[%clk 0:01:31]} 42... Kh6 {[%clk
0:00:41.5]} 43. Rc7 {[%clk 0:01:25.3]} 43... Kh7 {[%clk 0:00:40.7]} 44. Ke6
{[%clk 0:01:21.1]} 44... Kh6 {[%clk 0:00:38.9]} 45. Rcd7 {[%clk 0:01:20.2]}
45... Kh7 {[%clk 0:00:38.1]} 46. Kf7 {[%clk 0:01:17.3]} 46... Kh6 {[%clk
0:00:33.2]} 47. Kg8 {[%clk 0:01:14.9]} 47... Kxh5 {[%clk 0:00:29.5]} 48. Rxg7
{[%clk 0:01:12.8]} 48... Ra1 {[%clk 0:00:23.5]} 49. Kf7 {[%clk 0:01:08]} 49...
Kh6 {[%clk 0:00:16.5]} 50. Kf6 {[%clk 0:01:06.7]} 50... Kh5 {[%clk 0:00:14.2]}
51. Rg5+ {[%clk 0:01:05.4]} 51... Kh4 {[%clk 0:00:12.3]} 52. Rh7# {[%clk
0:01:04.7]} 1-0

[Event "*** Titled Tuesday Blitz"]
[Site "Chess.com"]
[Date "2021.02.09"]
[Round "9"]
[White "Colombiano07"]
[Black "HouseOfDurin"]
[Result "1-0"]
[WhiteElo "2321"]
[BlackElo "2116"]
[TimeControl "180+1"]
[EndTime "11:44:24 PST"]
[Termination "Colombiano07 won on time"]

1. d4 {[%clk 0:03:00.9]} 1... Nf6 {[%clk 0:02:58.8]} 2. c4 {[%clk 0:03:01.4]}
2... c5 {[%clk 0:02:58.2]} 3. d5 {[%clk 0:03:01.2]} 3... b5 {[%clk 0:02:58.8]}
4. cxb5 {[%clk 0:03:01.7]} 4... a6 {[%clk 0:02:59.5]} 5. Nc3 {[%clk 0:03:02.4]}
5... axb5 {[%clk 0:02:59.2]} 6. e4 {[%clk 0:03:03]} 6... b4 {[%clk 0:02:57.8]}
7. Nb5 {[%clk 0:03:03.4]} 7... Ba6 {[%clk 0:02:56.4]} 8. e5 {[%clk 0:03:03.6]}
8... Bxb5 {[%clk 0:02:46.7]} 9. Bxb5 {[%clk 0:03:02.1]} 9... Qa5 {[%clk
0:02:30.2]} 10. Bc4 {[%clk 0:02:46.3]} 10... Ne4 {[%clk 0:02:29.2]} 11. Nf3
{[%clk 0:02:06.5]} 11... b3+ {[%clk 0:01:37.5]} 12. Nd2 {[%clk 0:02:05.6]} 12...
Nxd2 {[%clk 0:01:30.7]} 13. Bxd2 {[%clk 0:02:06.5]} 13... Qc7 {[%clk 0:01:30.5]}
14. Bc3 {[%clk 0:01:51.5]} 14... Rxa2 {[%clk 0:01:25.4]} 15. O-O {[%clk
0:01:39.5]} 15... e6 {[%clk 0:01:14.7]} 16. Qxb3 {[%clk 0:01:29.3]} 16... Ra7
{[%clk 0:00:57.7]} 17. d6 {[%clk 0:01:04.3]} 17... Qb7 {[%clk 0:00:45.6]} 18.
Qxb7 {[%clk 0:00:46.7]} 18... Rxb7 {[%clk 0:00:46.5]} 19. Ra8 {[%clk 0:00:46.8]}
19... f6 {[%clk 0:00:19.3]} 20. f4 {[%clk 0:00:44.5]} 20... Kf7 {[%clk
0:00:15.2]} 21. Rfa1 {[%clk 0:00:37.6]} 21... fxe5 {[%clk 0:00:12.2]} 22. fxe5
{[%clk 0:00:37.2]} 22... g6 {[%clk 0:00:11.3]} 23. R1a7 {[%clk 0:00:35.1]} 23...
Rxa7 {[%clk 0:00:11]} 24. Rxa7 {[%clk 0:00:36]} 24... Bh6 {[%clk 0:00:10.4]} 25.
Bb5 {[%clk 0:00:28.1]} 25... Be3+ {[%clk 0:00:09]} 26. Kf1 {[%clk 0:00:27.9]}
26... Rd8 {[%clk 0:00:07.8]} 27. Ba5 {[%clk 0:00:26.1]} 27... Rc8 {[%clk
0:00:05.4]} 28. Bc7 {[%clk 0:00:22.8]} 28... c4 {[%clk 0:00:03.1]} 29. Ra8
{[%clk 0:00:20.2]} 1-0